bitfinex/quotes_ETHUSD_20251201
["timestamp","ask_amount","ask_price","bid_price","bid_amount"]
[1764565694509,0.57935594,2819.5,2819.4,0.451]
[1764565694712,0.57935594,2819.5,2819.4,0.9225]
[1764565694931,0.226,2819.5,2819.1,0.4715]
[1764565695088,0.35335594,2819.2,2819.1,0.4715]
[1764565695527,0.35335594,2819.2,2819.1,0.9225]
[1764565695814,0.35335594,2819.2,2819.1,0.451]
[1764565695993,3.9004615,2819.2,2819.1,0.451]
[1764565696192,0.35335594,2819.2,2819.1,0.451]
[1764565696597,3.9004615,2819.2,2819.1,0.451]
[1764565696812,0.35335594,2819.1,2819.0,0.001]
[1764565697007,0.57935594,2819.1,2819.0,0.001]
[1764565697284,0.57935594,2819.1,2819.0,0.452]
[1764565697687,4.12658732,2819.1,2819.0,0.452]
[1764565699025,4.12658732,2819.1,2819.0,0.001]
[1764565699942,0.4876,2819.9,2819.0,0.9235]
[1764565700221,0.4876,2819.9,2819.0,0.4725]
[1764565700222,0.35335594,2819.1,2819.0,0.4725]
[1764565700401,0.57935594,2819.1,2819.0,0.4725]
[1764565700600,0.57935594,2819.1,2819.0,0.9235]
[1764565700798,0.57935594,2819.1,2819.0,0.452]
[1764565700991,0.57935594,2819.1,2819.0,0.001]
[1764565701205,4.18838732,2819.1,2819.0,0.001]
[1764565701408,5.034496,2819.1,2819.0,0.001]
[1764565701609,5.44,2819.1,2819.0,0.001]
[1764565701809,13.54015023,2819.1,2819.0,0.001]
[1764565702430,5.44,2819.1,2819.0,0.001]
[1764565702618,5.8656,2819.1,2819.0,0.001]
[1764565702819,5.9275,2819.1,2819.0,0.001]
[1764565703020,14.02765023,2819.1,2819.0,0.001]
[1764565703228,14.75324434,2819.1,2819.0,0.001]
[1764565704608,14.52724434,2819.1,2819.0,0.001]
[1764565704809,6.65309411,2819.1,2819.0,0.001]
[1764565705043,6.36519411,2819.1,2819.0,0.001]
[1764565705216,0.57935594,2819.1,2819.0,0.9698]
[1764565705820,0.57935594,2819.1,2819.0,0.4733]
[1764565706139,0.226,2819.1,2819.0,0.9698]
[1764565706639,0.226,2819.1,2819.0,0.001]
[1764565706841,0.57935594,2819.1,2819.0,0.001]
[1764565707139,0.57935594,2819.1,2819.0,0.4733]
[1764565708016,0.226,2819.1,2819.0,0.9698]
[1764565708614,0.57935594,2819.1,2819.0,0.9698]
[1764565709524,0.226,2819.1,2819.0,0.4733]
[1764565709724,3.77323138,2819.1,2819.0,0.9698]
[1764565709970,4.12658732,2819.1,2819.0,0.9698]
[1764565710123,4.53924605,2819.1,2819.0,0.001]
[1764565710324,4.12658732,2819.1,2819.0,0.001]
[1764565711119,12.82398561,2819.1,2819.0,0.001]
[1764565711322,13.17734155,2819.1,2819.0,0.001]
[1764565711522,12.68724155,2819.1,2819.0,0.001]
[1764565711745,12.63224155,2819.1,2819.0,0.001]
[1764565711920,14.30517662,2819.1,2819.0,0.001]
[1764565713122,6.15002639,2819.1,2819.0,0.4733]
[1764565713359,0.35335594,2819.1,2819.0,0.4733]
[1764565713526,0.35335594,2819.1,2819.0,0.9698]
[1764565713527,0.57935594,2819.1,2819.0,0.9698]
[1764565714546,0.57935594,2819.1,2819.0,0.4733]
[1764565714848,13.00733166,2819.1,2819.0,0.001]
[1764565715026,15.63094271,2819.1,2819.0,0.001]
[1764565718236,15.14084271,2819.1,2819.0,0.001]
[1764565720071,15.63094271,2819.1,2819.0,0.001]
[1764565720245,15.63094271,2819.1,2818.4,0.001]
[1764565720246,0.75885994,2818.5,2818.4,0.001]
[1764565720445,9.86560428,2818.5,2818.4,0.001]
[1764565720670,0.35335594,2817.5,2817.0,0.684]
[1764565720859,0.405504,2818.0,2817.0,0.684]
[1764565720860,0.35335594,2817.2,2817.0,0.684]
[1764565721060,0.226,2817.4,2817.1,0.4965]
[1764565721260,1.00366043,2818.5,2817.3,0.4723]
[1764565721462,0.35335594,2817.9,2817.8,0.4723]
[1764565721663,0.226,2817.9,2817.8,0.4723]
[1764565721972,0.57935594,2817.9,2817.8,0.4723]
[1764565722169,1.30495005,2817.9,2817.8,0.4723]
[1764565722355,1.30495005,2817.9,2817.8,0.9688]
[1764565722559,0.226,2817.9,2817.8,0.9688]
[1764565723273,0.35335594,2818.0,2817.8,0.9688]
[1764565723478,0.35335594,2818.2,2818.1,0.6662]
[1764565723775,0.57935594,2818.2,2818.1,0.6662]
[1764565723963,4.12772014,2818.2,2818.1,0.6662]
[1764565724548,4.12772014,2818.2,2818.1,1.1627]
[1764565724876,0.226,2818.4,2818.1,1.1627]
[1764565725077,0.226,2818.4,2818.3,0.4723]
[1764565725547,0.226,2818.4,2818.3,0.9688]
[1764565725873,0.35335594,2818.5,2818.3,0.9688]
[1764565726171,0.226,2818.5,2818.4,0.9688]
[1764565727277,0.35335594,2818.6,2818.4,0.9688]
[1764565727513,0.35335594,2818.6,2818.5,0.9688]
[1764565727647,0.57935594,2818.6,2818.5,0.4723]
[1764565727978,0.57935594,2818.6,2818.2,0.4965]
[1764565727979,3.54798651,2818.5,2818.2,0.4965]
[1764565728164,0.35335594,2818.4,2818.2,0.4965]
[1764565728480,3.90134245,2818.5,2818.2,0.4965]
[1764565728783,0.35335594,2818.5,2818.4,0.4723]
[1764565729093,0.57935594,2818.6,2818.4,0.4723]
[1764565729387,0.35335594,2818.6,2818.5,0.4723]
[1764565729565,0.57935594,2818.6,2818.5,0.4723]
[1764565729769,0.57935594,2818.6,2818.5,0.9688]
[1764565730654,0.57935594,2818.6,2818.5,0.9698]
[1764565731786,3.54739164,2819.0,2818.5,0.9698]
[1764565732085,0.57935594,2818.9,2818.8,0.4723]
[1764565732387,0.576504,2819.3,2818.9,0.4723]
[1764565732388,0.72559411,2819.3,2818.9,0.4723]
[1764565732590,0.35335594,2819.0,2818.6,3.54783056]
[1764565732755,0.35335594,2819.4,2818.9,0.4965]
[1764565732961,0.35335594,2819.2,2819.1,0.4865]
[1764565733378,0.226,2819.3,2819.1,1.155]
[1764565733595,0.226,2819.3,2819.2,0.4865]
[1764565733793,0.226,2819.3,2819.2,0.9561]
[1764565733994,0.84985594,2820.1,2819.2,0.9561]
[1764565734293,0.57935594,2820.4,2820.0,0.4865]
[1764565734496,0.57935594,2820.4,2820.3,0.4865]
[1764565734693,0.35335594,2820.5,2820.3,0.4865]
[1764565735065,7.3166223,2820.7,2820.3,0.4865]
[1764565735269,0.35335594,2820.5,2820.3,0.4865]
[1764565735486,1.08501817,2820.6,2820.3,0.9561]
[1764565735690,1.08501817,2820.6,2820.4,0.4865]
[1764565735892,1.08501817,2820.6,2820.5,0.4865]
[1764565736074,0.73166223,2820.6,2820.2,0.4696]
[1764565736391,3.54559636,2820.4,2820.1,0.1989]
[1764565736563,0.35335594,2820.3,2820.1,0.6685]
[1764565736966,0.35335594,2820.3,2820.2,0.4865]
[1764565737193,0.80482845,2820.5,2820.2,0.44103]
[1764565737392,1.15818439,2820.5,2820.2,0.4696]
[1764565737992,0.002,2820.9,2820.4,0.4865]
[1764565738193,3.90032992,2820.9,2820.5,0.4865]
[1764565738396,0.58135594,2820.9,2820.8,0.4865]
[1764565738572,4.12632385,2820.9,2820.8,0.4865]
[1764565738978,0.58135594,2820.9,2820.8,0.4865]
[1764565740292,0.228,2820.9,2820.8,0.4865]
[1764565740662,0.228,2820.9,2820.8,0.9561]
[1764565741594,0.002,2820.9,2820.8,0.9561]
[1764565742167,0.002,2820.9,2820.8,4.50119359]
[1764565742601,0.002,2820.9,2820.8,6.05402845]
[1764565742765,0.002,2820.9,2820.8,1.31374075]
[1764565743102,0.002,2820.9,2820.8,0.4865]
[1764565743696,0.35535594,2820.9,2820.8,0.4865]
[1764565743885,0.002,2820.9,2820.8,0.4865]
[1764565744087,0.35535594,2820.9,2820.8,0.9561]
[1764565744285,0.002,2820.9,2820.8,0.9561]
[1764565744897,0.35535594,2820.9,2820.8,0.9561]
[1764565745090,0.002,2820.9,2820.8,0.9561]
[1764565745600,0.35535594,2820.9,2820.8,0.9561]
[1764565745797,0.002,2820.9,2820.8,0.9561]
[1764565745997,0.002,2820.9,2820.4,0.4696]
[1764565745998,0.3920082,2820.9,2820.4,0.4696]
[1764565746202,0.3920082,2820.9,2820.8,0.4865]
[1764565746371,0.002,2820.9,2820.8,0.4865]
[1764565746572,0.35535594,2820.9,2820.8,0.4865]
[1764565746897,0.35335594,2820.7,2820.2,0.4696]
[1764565747203,0.35335594,2820.3,2820.1,0.1989]
[1764565747682,0.35335594,2820.4,2820.1,0.1989]
[1764565748170,0.35335594,2820.4,2820.1,0.6685]
[1764565748369,0.226,2820.7,2820.1,0.6685]
[1764565748370,0.226,2820.7,2820.3,0.4865]
[1764565748597,0.226,2820.7,2820.6,0.4865]
[1764565749007,0.226,2820.7,2820.6,0.9561]
[1764565749171,0.226,2820.7,2820.6,0.4865]
[1764565749371,0.002,2820.9,2820.6,0.9561]
[1764565749585,0.002,2820.9,2820.8,0.4865]
[1764565750145,0.002,2820.9,2820.8,0.9561]
[1764565750939,0.002,2820.9,2820.8,4.50119359]
[1764565751439,0.002,2820.9,2820.8,5.30937948]
[1764565751816,0.002,2820.9,2820.8,4.50119359]
[1764565752206,0.002,2820.9,2820.8,0.4865]
[1764565753142,0.002,2820.9,2820.8,4.50119359]
[1764565753443,0.002,2820.9,2820.8,0.9561]
[1764565753642,0.002,2820.9,2820.8,4.50119359]
[1764565753860,0.002,2820.9,2820.8,4.53664452]
[1764565754534,0.002,2820.9,2820.8,6.03497342]
[1764565754939,0.002,2820.9,2820.8,6.07042435]
[1764565756362,0.002,2820.9,2820.8,6.03497342]
[1764565757163,0.002,2820.9,2820.8,6.07042435]
[1764565757671,0.002,2820.9,2820.8,6.29642435]
[1764565758049,0.002,2820.9,2820.8,6.26097342]
[1764565759866,0.002,2820.9,2820.8,5.70530758]
[1764565760091,0.002,2820.9,2820.8,6.19180758]
[1764565760265,0.002,2820.9,2820.8,6.22725851]
[1764565763779,0.002,2820.9,2820.8,10.07725851]
[1764565764096,0.002,2820.9,2820.8,10.04180758]
[1764565766678,0.002,2820.9,2820.8,10.04280758]
[1764565767386,0.002,2820.9,2820.8,6.59831158]
[1764565768382,0.002,2820.9,2820.8,21.14884664]
[1764565768586,0.002,2820.9,2820.8,20.70789171]
[1764565768789,0.002,2820.9,2820.8,6.19280758]
[1764565768959,0.002,2820.9,2820.8,6.22825851]
[1764565769757,0.002,2820.9,2820.8,21.74975451]
[1764565769954,0.002,2820.9,2820.8,19.57741558]
[1764565770154,0.002,2820.9,2820.8,6.59831158]
[1764565770475,0.002,2820.9,2820.8,20.86645351]
[1764565770671,0.002,2820.9,2820.8,20.83100258]
[1764565770984,0.002,2820.9,2820.8,16.31939158]
[1764565771387,0.002,2820.9,2820.8,15.57999158]
[1764565773358,0.002,2820.9,2820.8,36.59831158]
[1764565773885,0.002,2820.9,2820.8,12.58623258]
[1764565774390,0.002,2820.9,2820.8,14.07258058]
[1764565774562,0.002,2820.9,2820.8,9.31064658]
[1764565774767,0.002,2820.9,2820.8,9.53664658]
[1764565775369,0.002,2820.9,2820.8,24.27133658]
[1764565776478,0.002,2820.9,2820.8,28.53961458]
[1764565776959,0.002,2820.9,2820.8,20.50187958]
[1764565777160,0.002,2820.9,2820.8,21.13338358]
[1764565777359,0.002,2820.9,2820.8,23.22747958]
[1764565778477,0.002,2820.9,2820.8,30.45536058]
[1764565778865,0.002,2820.9,2820.8,28.69726158]
[1764565779073,0.002,2820.9,2820.8,28.83923015]
[1764565779268,0.002,2820.9,2820.8,26.88494915]
[1764565779572,0.002,2820.9,2820.8,27.34315715]
[1764565779968,0.002,2820.9,2820.8,24.76095915]
[1764565780566,0.002,2820.9,2820.8,24.93396915]
[1764565781161,0.002,2820.9,2820.8,6.74028015]
[1764565781368,0.002,2820.9,2820.8,21.63716715]
[1764565781564,0.002,2820.9,2820.8,5.38318204]
[1764565781892,0.002,2820.9,2820.8,5.96680758]
[1764565782094,0.002,2820.9,2820.8,5.46621347]
[1764565782483,0.002,2820.9,2820.8,29.17712858]
[1764565782798,0.002,2820.9,2820.8,26.11132558]
[1764565782986,0.002,2820.9,2820.8,22.01861158]
[1764565783493,0.002,2820.9,2820.8,6.59731158]
[1764565783692,0.002,2820.9,2820.8,30.20000558]
[1764565783992,0.002,2820.9,2820.8,24.78546958]
[1764565784195,1e-08,2821.2,2820.8,24.78546958]
[1764565784369,0.002,2821.5,2821.2,3.84999999]
[1764565784565,0.002,2821.5,2821.4,4.02733968]
[1764565784765,0.002,2821.5,2821.4,9.09533378]
[1764565786596,0.002,2821.5,2821.4,8.60293378]
[1764565786797,0.4934,2821.5,2821.4,8.11993378]
[1764565787185,0.002,2821.5,2821.4,9.99437281]
[1764565787485,0.002,2821.5,2821.4,9.51137281]
[1764565787670,0.002,2821.5,2821.4,9.99437281]
[1764565788077,0.002,2821.5,2821.4,6.14437282]
[1764565788378,0.4934,2821.5,2821.4,4.53037718]
[1764565788698,0.002,2821.5,2821.4,4.49493379]
[1764565788995,0.4934,2821.5,2821.4,4.49493379]
[1764565790104,0.9829,2821.5,2821.4,4.49493379]
[1764565790600,0.9829,2821.5,2821.4,4.26993379]
[1764565790773,0.9829,2821.5,2821.4,3.76933968]
[1764565790974,0.9829,2821.5,2821.4,4.49493379]
[1764565791294,0.9829,2821.5,2821.4,3.54433968]
[1764565791506,0.9829,2821.5,2821.4,4.30537718]
[1764565791713,0.002,2821.5,2821.4,4.26993379]
[1764565792011,0.002,2821.5,2821.4,4.30537718]
[1764565792507,0.4934,2821.5,2821.4,4.30537718]
[1764565794307,0.002,2821.5,2821.4,6.05126055]
[1764565794508,0.002,2821.5,2821.4,5.57646055]
[1764565794910,0.002,2821.5,2821.4,6.05126055]
[1764565795318,0.002,2821.5,2821.4,14.54888351]
[1764565795483,0.002,2821.5,2821.4,14.51344012]
[1764565795685,1e-08,2821.6,2821.4,18.0577798]
[1764565795879,1e-08,2821.6,2821.5,19.93473718]
[1764565796216,1e-08,2821.6,2821.5,16.78174004]
[1764565797014,1e-08,2821.6,2821.5,21.30625004]
[1764565797381,1e-08,2821.6,2821.5,23.27551411]
[1764565797577,1e-08,2821.6,2821.5,21.81455911]
[1764565797810,1e-08,2821.6,2821.5,22.34361711]
[1764565798010,1e-08,2821.6,2821.5,19.18957911]
[1764565798707,1e-08,2821.9,2821.8,0.4636]
[1764565798914,0.1825,2823.0,2821.8,40.11072028]
[1764565799115,0.4842,2823.2,2822.7,3.44413511]
[1764565799413,0.4842,2823.2,2822.8,0.225]
[1764565799581,0.4842,2823.2,2823.0,0.72559411]
[1764565799782,0.002,2823.2,2823.0,0.72559411]
[1764565800177,0.002,2823.2,2822.9,7.08491266]
[1764565800178,0.002,2823.2,2823.1,0.225]
[1764565800410,0.002,2823.2,2823.1,0.6886]
[1764565800581,1e-08,2823.5,2823.4,0.4636]
[1764565800783,1e-08,2823.5,2823.4,20.72047596]
[1764565800979,1e-08,2823.5,2823.4,0.6886]
[1764565801213,1e-08,2823.5,2823.2,0.14183466]
[1764565801400,1e-08,2823.5,2822.9,12.52670266]
[1764565801401,0.48220001,2823.5,2822.9,10.62736899]
[1764565801604,1e-08,2823.5,2823.4,3.541829]
[1764565801806,1e-08,2823.5,2823.4,3.767829]
[1764565802109,0.93480001,2823.5,2823.4,3.541829]
[1764565802309,0.93480001,2823.5,2823.4,4.49342311]
[1764565803306,0.45260001,2823.5,2823.4,4.49342311]
[1764565803490,0.93480001,2823.5,2823.4,4.49342311]
[1764565804613,1e-08,2823.5,2823.4,4.49342311]
[1764565804819,0.93480001,2823.5,2823.4,4.49342311]
[1764565806919,0.93480001,2823.5,2823.0,3.84999999]
[1764565807119,0.6563,2823.4,2823.1,4.49379948]
[1764565807312,0.4822,2823.4,2823.1,8.03600485]
[1764565807615,0.4822,2823.4,2823.2,0.03542079]
[1764565807825,0.4822,2823.4,2823.3,3.54195445]
[1764565808196,0.9348,2823.4,2823.3,3.54195445]
[1764565809593,0.9348,2823.4,2823.3,3.57737399]
[1764565809795,0.9348,2823.4,2823.3,3.54195445]
[1764565810164,0.9348,2823.4,2823.1,3.54219106]
[1764565810421,0.4526,2823.2,2823.1,3.54219106]
[1764565810609,0.4526,2823.2,2823.1,3.57761311]
[1764565810796,0.9348,2823.2,2823.1,3.57761311]
[1764565811192,0.9348,2823.2,2823.1,3.54219106]
[1764565811923,0.4526,2823.2,2823.0,7.08465637]
[1764565812222,1e-08,2823.5,2823.1,1.18919411]
[1764565812422,1e-08,2823.5,2823.2,0.03542079]
[1764565812627,1e-08,2823.5,2823.4,1.18919411]
[1764565812827,1e-08,2823.5,2823.4,9.40061239]
[1764565812995,1e-08,2823.5,2823.4,5.2651941]
[1764565813191,1e-08,2823.5,2823.4,6.18480541]
[1764565813525,0.93480001,2823.5,2823.4,3.88541828]
[1764565813823,0.93480001,2823.5,2823.4,7.39182899]
[1764565814030,0.45260001,2823.5,2823.4,7.39182899]
[1764565814206,0.93480001,2823.5,2823.4,7.39182899]
[1764565815136,0.45260001,2823.5,2823.4,7.39182899]
[1764565815530,1e-08,2823.5,2823.4,7.39182899]
[1764565815699,1e-08,2823.5,2823.4,8.1174231]
[1764565815901,0.45260001,2823.5,2823.4,8.1174231]
[1764565816117,0.93480001,2823.5,2823.4,8.1174231]
[1764565816314,1e-08,2823.5,2823.4,8.1174231]
[1764565816513,1e-08,2823.5,2823.4,10.24436024]
[1764565817106,1e-08,2823.5,2823.4,6.39436025]
[1764565817351,1e-08,2823.5,2823.4,5.95497854]
[1764565817930,1e-08,2823.5,2823.4,5.95597854]
[1764565818137,1e-08,2823.5,2823.4,6.43077854]
[1764565818535,1e-08,2823.5,2823.4,5.92056025]
[1764565819138,1e-08,2823.5,2823.4,5.45696025]
[1764565819320,1e-08,2823.5,2823.4,6.18197854]
[1764565819502,1e-08,2823.5,2823.4,5.95597854]
[1764565819710,1e-08,2823.5,2823.4,5.68296025]
[1764565820024,0.93480001,2823.5,2823.4,7.39282899]
[1764565820225,0.93480001,2823.5,2823.4,0.001]
[1764565821535,4.8298595,2823.5,2823.1,0.001]
[1764565821723,0.1741,2823.2,2823.1,0.001]
[1764565822116,4.55173584,2823.2,2823.1,0.001]
[1764565822333,5.36109346,2823.2,2823.1,0.001]
[1764565822544,5.36109346,2823.2,2822.8,0.001]
[1764565822545,0.35335594,2823.1,2822.8,0.001]
[1764565822739,0.98955594,2822.9,2822.8,0.001]
[1764565822933,0.6362,2822.9,2822.8,0.001]
[1764565823135,1.1187,2822.9,2822.8,0.001]
[1764565823717,1.47205594,2822.9,2822.8,0.001]
[1764565823916,1.1187,2822.9,2822.8,0.001]
[1764565824146,1.0978,2822.9,2822.8,0.001]
[1764565824848,0.6362,2822.9,2822.8,0.001]
[1764565825051,0.4616,2823.4,2822.8,0.001]
[1764565825215,0.4616,2823.4,2822.8,0.26242581]
[1764565825648,0.4616,2823.4,2822.8,0.227]
[1764565826150,0.4616,2823.4,2822.8,4.26917594]
[1764565826151,0.6369,2822.9,2822.8,4.26917594]
[1764565826344,0.4616,2823.4,2822.8,7.81175777]
[1764565826548,0.6369,2822.9,2822.8,0.001]
[1764565826925,0.6369,2822.9,2822.8,3.57900764]
[1764565826926,1.0985,2822.9,2822.8,3.57900764]
[1764565827121,1.0985,2822.9,2822.8,0.03642581]
[1764565827322,1.0985,2822.9,2822.8,3.54358183]
[1764565827951,1.0985,2822.9,2822.8,0.001]
[1764565829751,1.45185594,2822.9,2822.8,0.001]
[1764565830330,1.59792211,2822.9,2822.8,0.001]
[1764565830531,1.0985,2822.9,2822.8,0.001]
[1764565830921,4.99431227,2822.9,2822.8,0.001]
[1764565831126,1.0985,2822.9,2822.8,0.001]
[1764565832226,0.6369,2822.9,2822.8,0.001]
[1764565832630,0.4616,2823.3,2822.8,0.001]
[1764565832826,1e-08,2823.5,2822.8,0.73580928]
[1764565833026,1e-08,2823.5,2822.9,0.03542456]
[1764565833226,1e-08,2823.5,2823.0,0.226]
[1764565833459,1e-08,2823.5,2823.4,0.4662]
[1764565833662,1e-08,2823.5,2823.4,0.6922]
[1764565833847,1e-08,2823.5,2823.4,1.1601]
[1764565834241,1e-08,2823.5,2823.4,5.42752311]
[1764565834446,1e-08,2823.5,2823.4,7.13368256]
[1764565834933,1e-08,2823.5,2823.4,9.25356856]
[1764565839377,1e-08,2823.5,2823.4,13.50907255]
[1764565840469,0.002,2824.1,2824.0,20.49786148]
[1764565840470,1e-08,2824.1,2824.0,20.49786148]
[1764565840643,1e-08,2824.1,2824.0,33.03483248]
[1764565840838,1e-08,2824.1,2824.0,33.50273248]
[1764565841076,3.53835138,2826.2,2824.1,1.13109811]
[1764565841077,0.1969,2825.4,2824.1,1.13109811]
[1764565841276,0.1969,2825.4,2824.8,0.72559411]
[1764565841482,0.1969,2825.4,2824.9,0.226]
[1764565841649,0.1969,2825.4,2824.9,1.13037131]
[1764565841976,0.6585,2825.4,2824.9,1.13037131]
[1764565842267,0.6585,2825.7,2824.9,1.13037131]
[1764565842671,0.1969,2825.9,2825.1,0.72559411]
[1764565843042,0.1969,2825.9,2825.2,0.1866]
[1764565843242,0.1969,2825.9,2825.3,0.226]
[1764565843475,0.1969,2826.0,2825.4,0.72559411]
[1764565843642,0.1969,2826.2,2825.7,0.72559411]
[1764565843847,0.1969,2826.2,2825.8,0.226]
[1764565844052,0.1969,2826.2,2825.9,0.226]
[1764565844252,0.1969,2826.2,2826.0,0.226]
[1764565844659,0.4703,2826.1,2826.0,3.76451161]
[1764565845073,0.4703,2826.1,2825.5,4.41082389]
[1764565845074,0.4703,2826.1,2825.7,0.72559411]
[1764565845372,0.1315,2825.9,2825.7,0.72559411]
[1764565845574,0.1315,2825.9,2825.8,0.226]
[1764565845951,0.3284,2825.9,2825.7,0.72559411]
[1764565846274,0.4703,2825.8,2825.7,0.226]
[1764565846775,0.9319,2825.8,2825.7,0.226]
[1764565847073,0.9319,2825.8,2825.7,0.72559411]
[1764565848080,0.4703,2825.8,2825.7,0.72559411]
[1764565848249,0.4703,2825.8,2825.7,4.26452344]
[1764565848444,0.4703,2825.8,2825.7,4.49052344]
[1764565849076,0.1969,2826.4,2825.8,0.72559411]
[1764565849276,0.6585,2827.0,2826.3,0.6284]
[1764565849478,0.6585,2827.0,2826.4,0.226]
[1764565849779,0.4616,2826.9,2826.2,0.72559411]
[1764565850074,1.16202626,2826.8,2826.2,0.95159411]
[1764565850283,0.4703,2826.3,2825.6,0.72559411]
[1764565850454,0.48485594,2826.2,2825.4,0.226]
[1764565850650,0.48485594,2826.2,2825.6,0.72559411]
[1764565850850,0.4616,2826.1,2825.6,0.72559411]
[1764565851086,0.6638,2825.7,2825.6,0.72559411]
[1764565851581,1.1254,2825.7,2825.6,0.72559411]
[1764565851878,1.1254,2825.7,2825.5,3.84999998]
[1764565852180,0.1349,2825.6,2825.5,4.57559409]
[1764565852477,0.1969,2825.7,2825.5,4.57559409]
[1764565852677,0.9319,2825.6,2825.5,4.57559409]
[1764565853682,0.9319,2825.6,2825.5,8.11479069]
[1764565855386,0.4703,2825.6,2825.5,8.11479069]
[1764565855690,0.002,2825.7,2825.5,11.65398729]
[1764565856357,0.002,2825.7,2825.6,0.03539071]
[1764565856681,0.002,2825.7,2825.6,3.57446205]
[1764565856854,0.9476,2825.7,2825.6,0.03539071]
[1764565857455,0.4529,2825.7,2825.6,0.03539071]
[1764565857655,0.002,2825.7,2825.6,0.03539071]
[1764565857951,0.002,2825.7,2825.6,0.52129071]
[1764565858157,0.002,2825.7,2825.6,1.76141524]
[1764565858878,0.002,2825.7,2825.6,5.30048658]
[1764565859081,0.002,2825.7,2825.6,5.99068998]
[1764565859286,0.002,2825.7,2825.6,15.26353942]
[1764565859451,0.002,2825.7,2825.6,32.55261671]
[1764565859882,0.002,2825.7,2825.6,28.58829671]
[1764565860281,0.002,2826.3,2825.6,28.99380071]
[1764565860480,0.002,2826.3,2826.2,14.20516611]
[1764565860689,0.002,2826.3,2826.2,10.63205111]
[1764565860872,0.002,2826.3,2826.2,15.04147511]
[1764565861184,0.002,2826.3,2826.2,14.81547511]
[1764565861360,0.002,2826.3,2826.2,35.79531811]
[1764565861559,0.002,2826.3,2826.2,38.53833406]
[1764565861958,0.002,2826.3,2826.2,35.07854006]
[1764565862468,0.002,2826.3,2826.2,38.53833406]
[1764565863769,0.002,2826.3,2826.2,14.34604306]
[1764565863963,0.002,2826.3,2826.2,7.26683006]
[1764565864290,0.002,2826.3,2826.2,5.44141411]
[1764565864863,0.002,2826.3,2826.2,14.24865604]
[1764565865195,0.002,2826.3,2826.2,25.46133884]
[1764565865764,0.002,2826.3,2826.2,19.77815384]
[1764565866091,0.002,2826.3,2826.2,21.02264784]
[1764565866264,0.002,2826.3,2826.2,23.49619687]
[1764565866472,0.4947,2827.8,2826.2,37.64947687]
[1764565866673,0.1969,2828.0,2827.3,0.72559411]
[1764565866886,0.4947,2827.9,2827.4,0.226]
[1764565867289,0.4947,2827.9,2827.6,0.72559411]
[1764565867693,0.4509,2827.7,2826.6,7.80117052]
[1764565868002,0.1511,2827.6,2826.8,1.04666745]
[1764565868703,0.6458,2827.6,2826.9,0.226]
[1764565868877,0.4947,2827.5,2826.9,0.226]
[1764565869302,0.4947,2827.5,2827.1,0.72559411]
[1764565869678,0.4947,2827.5,2827.2,0.226]
[1764565870004,0.4947,2827.5,2827.2,1.38235502]
[1764565870174,0.4509,2827.3,2827.2,1.38235502]
[1764565870577,0.4509,2827.3,2826.8,0.82066745]
[1764565870578,0.4509,2827.3,2826.9,3.53740063]
[1764565870812,0.4509,2827.2,2827.0,0.95159411]
[1764565871717,0.4509,2827.2,2827.1,4.2627877]
[1764565872010,0.4947,2827.5,2827.2,0.72559411]
[1764565872181,0.4947,2827.8,2827.2,0.72559411]
[1764565872514,0.4947,2827.8,2827.3,1.16908692]
[1764565872681,0.4947,2827.8,2827.4,0.226]
[1764565873209,0.4509,2827.5,2827.4,0.226]
[1764565873411,0.4509,2827.5,2827.3,1.13371749]
[1764565873587,0.6458,2827.4,2827.3,0.226]
[1764565873916,0.6458,2827.4,2827.3,0.95159411]
[1764565874206,0.6458,2827.4,2826.3,0.4656]
[1764565874207,0.6458,2827.4,2826.6,7.80123267]
[1764565874413,0.9426,2827.3,2826.7,1.13390985]
[1764565874714,0.3398,2826.7,2826.6,3.53781928]
[1764565875006,0.4947,2827.2,2826.6,8.02723267]
[1764565875189,0.1858,2826.9,2826.6,8.02723267]
[1764565875511,0.4509,2826.7,2826.6,4.48941339]
[1764565875687,0.4509,2826.7,2826.6,3.76381928]
[1764565876007,3.53646773,2827.7,2826.6,3.76381928]
[1764565876008,0.4947,2827.3,2826.6,12.05553164]
[1764565876182,0.4947,2827.3,2826.7,0.03537694]
[1764565877120,0.4509,2826.8,2826.6,8.03181236]
[1764565877477,0.4947,2827.1,2826.6,8.03181236]
[1764565877736,0.4947,2827.1,2826.8,7.07513796]
[1764565879794,0.4947,2827.4,2826.9,0.226]
[1764565880119,0.4509,2827.0,2826.9,0.226]
[1764565880285,0.4509,2827.0,2826.3,10.61458443]
[1764565880286,0.4509,2827.0,2826.8,0.226]
[1764565880617,0.1858,2826.9,2826.8,0.226]
[1764565880918,0.6367,2826.9,2826.8,0.226]
[1764565881282,3.53631798,2827.8,2826.8,0.226]
[1764565881487,0.4947,2827.3,2826.8,0.226]
[1764565881689,0.4947,2827.3,2826.9,3.53744384]
[1764565882223,0.4509,2827.0,2826.9,3.53744384]
[1764565883195,0.9061,2827.0,2826.6,0.72559411]
[1764565883396,0.4552,2827.2,2826.6,0.95059411]
[1764565883622,0.4552,2827.2,2826.6,2.10703686]
[1764565883839,0.4552,2827.2,2826.7,7.07538826]
[1764565885291,0.4552,2827.2,2826.8,0.225]
[1764565885687,0.4858,2826.9,2826.8,0.225]
[1764565885896,0.4858,2826.9,2826.8,3.76256898]
[1764565886719,1.1356,2826.9,2826.7,3.53764253]
[1764565887029,0.4858,2826.8,2826.7,4.26323664]
[1764565887191,0.951,2826.8,2826.7,4.26323664]
[1764565890696,0.4672,2827.3,2826.7,7.83630771]
[1764565890909,0.1846,2827.1,2826.7,7.80093077]
[1764565891114,0.1846,2827.1,2826.8,0.03537568]